[Event "16th Serbian Championship 2022"]
[Site "Bajina Basta"]
[Date "2022.12.13"]
[Round "8.3"]
[White "Ivic, Velimir"]
[Black "Indjic, Aleksandar"]
[Result "1-0"]
[ECO "E24"]
[WhiteElo "2560"]
[BlackElo "2631"]
[Annotator "TA"]
[PlyCount "79"]
[EventDate "2022.12.06"]
[EventType "tourn"]
[EventCountry "SRB"]
[SourceTitle "playchess.com"]
[Source "ChessBase"]
[SourceQuality "1"]
[TimeControl "40/5400+30:1800+30"]

{[%evp 16,79,-29,-29,-28,-54,-37,-70,-30,-58,-55,-51,-49,-41,-47,-37,-47,-52,-37,-45,0,-16,-16,-18,0,0,45,-25,26,18,39,43,18,19,69,72,182,107,117,110,143,78,579,572,575,483,576,562,568,564,581,537,847,847,1121,1115,1107,1094,1056,1033,2900,2799,2117,1672,1695,1506]} 1. d4 {[%emt 0:00:10]} Nf6 {[%emt 0:01:08]} 2. c4 {[%emt 0:00:06]} e6 {[%emt 0:00:09]} 3. Nc3 {[%emt 0:00:09]} Bb4 {[%emt 0:02:30]} 4. a3 {[%emt 0:00:42]} Bxc3+ {[%emt 0:00:20]} 5. bxc3 {[%emt 0:00:04]} c5 {[%emt 0:00:56]} 6. f3 {[%emt 0:00:32]} Nc6 {[%emt 0:00:39]} 7. e4 {[%emt 0:00:10]} d6 {[%emt 0:00:06]} 8. Be3 {[%emt 0:00:33]} b6 {[%emt 0:00:22]} 9. Bd3 {[%emt 0:00:22]} Na5 {[%emt 0:11:11] E24: Nimzo-Indian: Sämisch: Unusual Black 5th moves and 5...c5 sidelines.} 10. Ne2 {[%emt 0:00:25]} Ba6 {[%emt 0:04:50]} 11. O-O {[%emt 0:00:31]} Nd7 {[%emt 0:01:11] Black is slightly better.} 12. f4 {[%emt 0:01:00]} Bxc4 {[%emt 0:01:09]} 13. f5 {[%emt 0:00:11] [#]} e5 $146 {[%emt 0:15:18]} ({Predecessor:} 13... exf5 14. Ng3 fxe4 15. Nxe4 O-O 16. Nxd6 Bxd3 17. Qxd3 Nc6 18. Rae1 cxd4 19. cxd4 Nf6 {1-0 (58) Giri,A (2764)-Praggnanandhaa,R (2678) chess24.com INT 2022}) 14. f6 {[%emt 0:02:48]} g6 {[%emt 0:00:17]} (14... Nxf6 $2 15. Bxc4 Nxc4 16. Qa4+ Qd7 17. Qxc4 $18) 15. Bxc4 {[%emt 0:01:44]} Nxc4 {[%emt 0:00:10]} 16. Bh6 {[%emt 0:00:09]} Qc7 {[%emt 0:00:33]} (16... Nxf6 $2 17. Bg5 $18) 17. a4 {[%emt 0:21:05]} Rg8 {[%emt 0:08:54]} 18. dxe5 {[%emt 0:09:47]} Ndxe5 {[%emt 0:00:52]} 19. Nf4 $1 {[%emt 0:13:37]} Qd7 {[%emt 0:13:28]} (19... Ne3 {keeps more tension.} 20. Ne6 fxe6 21. Bxe3 Rf8) 20. Nd5 {[%emt 0:00:57] Inhibits Ne3.} Qg4 {[%emt 0:03:03]} 21. Qc2 {[%emt 0:02:28]} (21. Qb3 $14) 21... Kd7 {[%emt 0:01:20]} (21... g5 $142) 22. Bf4 $11 {[%emt 0:06:49][%mdl 1024] White has compensation.} Rgc8 {[%emt 0:07:28]} 23. h3 {[%emt 0:09:45]} (23. Qb3 {with more complications.} Rab8 24. Ne7 Re8 25. h3) 23... Qe6 {[%emt 0:00:08]} 24. Qe2 {[%emt 0:04:37] Hoping for Bxe5.} Na5 {[%emt 0:04:15]} (24... Rab8 $11) 25. Qb5+ $14 {[%emt 0:01:41]} Rc6 {[%emt 0:00:35]} (25... Kd8 $16) 26. Ne7 {[%emt 0:05:19]} ({Better is} 26. Rad1 $18) 26... a6 $16 {[%emt 0:05:19]} 27. Qe2 {[%emt 0:00:12] White is much more active.} Nac4 {[%emt 0:01:50]} 28. Rad1 {[%emt 0:01:31]} ({White should try} 28. Rab1) 28... Rc7 $2 {[%emt 0:01:07][%mdl 8192] [#] This costs Black the game.} (28... Rcc8 $16 {holds on.}) 29. Bxe5 $1 $18 {[%emt 0:11:04] White is clearly winning.} ({Not} 29. Nd5 Rb7 $16) 29... Nxe5 {[%emt 0:00:12] [#]} 30. Rxd6+ $3 {[%emt 0:00:43][%mdl 576]} Qxd6 {[%emt 0:00:02]} 31. Rd1 {[%emt 0:00:05] Prevents c4.} c4 {[%emt 0:00:41] White must now prevent ...Nd3.} 32. Rxd6+ {[%emt 0:00:14]} Kxd6 {[%emt 0:00:02]} 33. Qe3 {[%emt 0:00:18]} Rc5 {[%emt 0:01:05]} 34. Qd4+ {[%emt 0:00:42]} Ke6 {[%emt 0:00:48]} 35. a5 {[%emt 0:00:55]} Rb8 {[%emt 0:09:58]} 36. axb6 {[%emt 0:03:03]} Ra5 {[%emt 0:00:01]} 37. Nd5 {[%emt 0:01:37]} Rb7 {[%emt 0:06:25]} 38. Nc7+ {[%emt 0:00:26]} Kxf6 {[%emt 0:00:05]} 39. Qd8+ {[%emt 0:00:09]} Kg7 {[%emt 0:00:07]} 40. Ne8+ {[%emt 0:00:04] Weighted Error Value: White=0.15 (very precise) /Black=0.42} 1-0

[Event "16th Serbian Championship 2022"]
[Site "Bajina Basta"]
[Date "2022.12.13"]
[Round "8.4"]
[White "Perunovic, Milos"]
[Black "Ivanisevic, Ivan"]
[Result "1/2-1/2"]
[WhiteElo "2541"]
[BlackElo "2533"]
[Annotator "TA"]
[PlyCount "27"]
[EventDate "2022.12.06"]
[EventType "tourn"]
[EventCountry "SRB"]
[SourceTitle "playchess.com"]
[Source "ChessBase"]
[SourceQuality "1"]
[TimeControl "40/5400+30:1800+30"]

{[%evp 11,18,35,44,40,51,25,24,0,0]} 1. e4 {[%emt 0:00:03]} c5 {[%emt 0:00:05]} 2. Nf3 {[%emt 0:00:05]} d6 {[%emt 0:00:03]} 3. d4 {[%emt 0:00:06]} cxd4 {[%emt 0:00:05]} 4. Nxd4 {[%emt 0:00:05]} Nf6 {[%emt 0:00:05]} 5. Nc3 {[%emt 0:00:05]} Bd7 {[%emt 0:00:06]} 6. Bg5 {[%emt 0:00:05]} e6 {[%emt 0:00:09]} 7. Ndb5 {[%emt 0:00:06] B56: Classical Sicilian: Unusual Lines.} Bxb5 {[%emt 0:00:30] is cutting edge theory.} 8. Bxb5+ {[%emt 0:00:05]} Nc6 {[%emt 0:00:09]} 9. O-O {[%emt 0:00:04][%cal Oe4e5]} Be7 {[%emt 0:00:07] [#] Black did not feel at home in the position after the opening.   Weighted Error Value: White=0.12 (very precise) /Black=0.03 (flawless)} {Predecessor:} 10. Qd2 $146 O-O 11. Rad1 Rc8 12. Bf4 Ne5 13. Rfe1 Qa5 14. Nd5 {1-0 (55) Lobanov,S (2516)-Kollars,D (2586) Chess.com INT 2020} 1/2-1/2

[Event "16th Serbian Championship 2022"]
[Site "Bajina Basta"]
[Date "2022.12.13"]
[Round "8.5"]
[White "Bogosavljevic, Boban"]
[Black "Perunovic, Miodrag"]
[Result "1-0"]
[ECO "A26"]
[WhiteElo "2521"]
[BlackElo "2417"]
[Annotator "TA"]
[PlyCount "67"]
[EventDate "2022.12.06"]
[EventType "tourn"]
[EventCountry "SRB"]
[SourceTitle "playchess.com"]
[Source "ChessBase"]
[SourceQuality "1"]
[TimeControl "40/5400+30:1800+30"]

{[%evp 23,67,12,23,11,35,10,6,0,19,0,44,53,50,53,33,34,28,25,33,63,52,29,35,0,75,75,39,35,33,35,38,14,8,17,99,86,252,241,362,162,151,152,433,423,438,392]} 1. Nf3 {[%emt 0:00:12]} Nf6 {[%emt 0:00:28]} 2. g3 {[%emt 0:00:43]} g6 {[%emt 0:00:05]} 3. Bg2 {[%emt 0:00:16]} Bg7 {[%emt 0:00:04]} 4. O-O {[%emt 0:00:05]} O-O {[%emt 0:00:08]} 5. c4 {[%emt 0:00:04]} d6 {[%emt 0:00:09]} 6. Nc3 {[%emt 0:00:05]} e5 {[%emt 0:00:33]} 7. d3 {[%emt 0:00:05]} Nc6 {[%emt 0:00:41]} 8. Rb1 {[%emt 0:00:06]} a5 {[%emt 0:02:30]} 9. a3 {[%emt 0:00:05][%cal Ba2a3,Ba3b4,Bb4b5,Bb5b6][%mdl 32]} h6 {[%emt 0:08:48]} 10. b4 {[%emt 0:00:35]} axb4 {[%emt 0:00:03]} 11. axb4 {[%emt 0:00:11]} Be6 {[%emt 0:00:04]} 12. Nd2 {[%emt 0:12:18]} d5 {[%emt 0:03:09]} 13. b5 {[%emt 0:03:12] A26: English Opening vs King's Indian with ...Nc6 and d3.} Ne7 {[%emt 0:00:16]} 14. Bb2 {[%emt 0:04:57]} c6 {[%emt 0:00:56]} 15. Ra1 {[%emt 0:28:55] The position is equal.} Qc7 {[%emt 0:02:40]} 16. Qb3 {[%emt 0:12:31] [#]} Rfd8 $146 {[%emt 0:16:34]} ({Predecessor:} 16... Rfc8 17. Rfc1 Qd8 18. Rd1 Rxa1 19. Rxa1 Nf5 20. Qd1 e4 21. dxe4 Nxe4 22. Ndxe4 dxe4 23. Bxe4 {½-½ (71) Matjushin,G (2416)-Golubka,P (2260) Simferopol 2003}) 17. b6 {[%emt 0:04:14]} Qb8 {[%emt 0:01:13]} 18. Rxa8 {[%emt 0:01:08]} Qxa8 {[%emt 0:00:01]} 19. Ra1 {[%emt 0:08:56]} Qb8 {[%emt 0:00:08]} 20. Qb4 {[%emt 0:02:13]} Nf5 {[%emt 0:05:05]} 21. cxd5 {[%emt 0:00:23]} Nxd5 {[%emt 0:03:35]} 22. Nxd5 {[%emt 0:07:09]} cxd5 {[%emt 0:00:02]} 23. Ra7 {[%emt 0:00:14]} Nd6 {[%emt 0:03:16]} (23... Qc8 $11) 24. Qa5 $16 {[%emt 0:00:57] White has more active pieces.} Nc8 {[%emt 0:02:33]} 25. Ra8 {[%emt 0:00:18]} Qd6 {[%emt 0:00:01]} 26. Ba3 $36 {[%emt 0:00:11][%mdl 2048] White is pushing.} Qc6 {[%emt 0:10:57]} 27. Qc5 {[%emt 0:00:09]} Qxc5 {[%emt 0:00:03]} 28. Bxc5 {[%emt 0:00:10]} Bf8 {[%emt 0:00:02] [#]} (28... Bf6 $11 {keeps the balance.}) 29. Nb3 $1 {[%emt 0:00:44]} Bf5 $2 {[%emt 0:35:06]} (29... Bxc5 $16 {is a better defense.} 30. Nxc5 Rf8) 30. Rb8 $18 {[%emt 0:10:40]} Kg7 {[%emt 0:01:10]} (30... Bxc5 {keeps fighting.} 31. Nxc5 Rd6) 31. Rxb7 {[%emt 0:01:02]} (31. d4 $142) 31... Bxc5 {[%emt 0:00:53]} 32. Nxc5 {[%emt 0:00:03] Threatens to win with Rb8.} Rd6 $2 {[%emt 0:00:01]} (32... Nd6 $16) 33. Na4 {[%emt 0:01:17][%cal Ob7f7] [#] aiming for Rxf7+!} Bd7 {[%emt 0:00:07]} 34. Rc7 {[%emt 0:00:32] Weighted Error Value: White=0.16 (very precise) /Black=0.41} 1-0

[Event "16th Serbian Championship 2022"]
[Site "Bajina Basta"]
[Date "2022.12.14"]
[Round "9.1"]
[White "Perunovic, Miodrag"]
[Black "Martic, Ivan"]
[Result "1-0"]
[ECO "C46"]
[WhiteElo "2417"]
[BlackElo "2270"]
[Annotator "TA"]
[PlyCount "53"]
[EventDate "2022.12.06"]
[EventType "tourn"]
[EventCountry "SRB"]
[SourceTitle "playchess.com"]
[Source "ChessBase"]
[SourceQuality "1"]
[TimeControl "40/5400+30:1800+30"]

{[%evp 9,53,-14,27,29,63,65,69,55,72,28,28,31,23,-13,0,-4,73,4,0,0,0,-19,72,64,739,696,699,218,734,690,29987,1175,1180,1022,1027,1002,29981,29982,29980,29974,29972,29973,29965,29963,4910,4806]} 1. e4 {[%emt 0:00:13]} e5 {[%emt 0:00:11]} 2. Nf3 {[%emt 0:00:18]} Nc6 {[%emt 0:00:07]} 3. Nc3 {[%emt 0:00:09]} g6 {[%emt 0:04:17]} 4. h4 {[%emt 0:07:20]} Bg7 {[%emt 0:09:24]} 5. Bc4 {[%emt 0:02:54]} Na5 {[%emt 0:04:59]} 6. Be2 {[%emt 0:02:33] [#] C46: 3 Nc3: Unusual Black 3rd moves.} Nf6 $146 {[%emt 0:02:49]} ({Predecessor:} 6... d6 7. d4 Bg4 8. d5 c5 9. Bg5 f6 10. Be3 Ne7 11. Nd2 Bd7 12. h5 a6 {1-0 (46) Babikov,I (2273)-Granovskiy,A (2288) Moscow 2014}) 7. d4 {[%emt 0:00:35]} exd4 {[%emt 0:00:11]} 8. Nxd4 {[%emt 0:00:09] White is slightly better.} Nc6 {[%emt 0:10:27] Prevents e5.} 9. Be3 {[%emt 0:00:26]} O-O {[%emt 0:02:37]} 10. h5 {[%emt 0:00:40]} Re8 {[%emt 0:00:38]} 11. hxg6 {[%emt 0:00:06]} hxg6 {[%emt 0:00:06]} 12. Bg5 {[%emt 0:07:36] [#] Hoping for Nxc6.} d6 {[%emt 0:05:02]} (12... d5 $11) 13. Nxc6 {[%emt 0:03:33] White is more active.} (13. Nf3 $16) 13... bxc6 $11 {[%emt 0:00:07]} 14. Qd2 {[%emt 0:03:31]} Rb8 {[%emt 0:05:03]} 15. Rh4 {[%emt 0:09:54]} Rxb2 {[%emt 0:30:28]} (15... Qe7 $11 {keeps the balance.}) 16. O-O-O $36 {[%emt 0:00:21][%mdl 2048] White fights for an advantage.} Bf5 $2 {[%emt 0:09:45][%mdl 8192] This costs Black the game.} 17. exf5 $18 {[%emt 0:11:45][%cal Be4f5,Bf5f6,Bf6g7][%mdl 32]} ({Not} 17. Kxb2 Qb8+ 18. Ka3 (18. Bb5 $2 Nxe4 19. Rxe4 Bxe4 $19) 18... Nxe4 19. Rxe4 Bxe4 $18) 17... Qb8 {[%emt 0:04:13][%cal Of6e4] White must now prevent ...Ne4!} 18. Rdh1 $2 {[%emt 0:23:43]} (18. Bh6 {Intending Bxg7 and mate.} Rxe2 19. Qxe2) 18... Nd5 $2 {[%emt 0:01:01]} (18... Ne4 19. Rxe4 Rxe4) 19. f6 $1 {[%emt 0:00:19]} (19. Nxd5 $2 Rb1#) 19... Nb4 {[%emt 0:02:50]} 20. Kd1 {[%emt 0:05:44]} (20. Kxb2 {is a self mate.} Nd3+ 21. Ka3 Qb2+ 22. Ka4 Nc5+ 23. Ka5 Qb6#) (20. Bc4 $142 Re4 21. Nxe4 Nd5 22. Bb3 (22. fxg7 $2 Rb1#) 22... Rxb3 23. cxb3 Qd8 {[#]} 24. Qxd5 $3 {[%mdl 512]} cxd5 25. Rh7) 20... Nxa2 {[%emt 0:02:45]} 21. Nxa2 {[%emt 0:00:57]} Rxa2 {[%emt 0:00:05]} 22. fxg7 {[%emt 0:05:21]} Ra1+ {[%emt 0:01:06]} 23. Qc1 {[%emt 0:00:01]} Rxc1+ {[%emt 0:00:27]} 24. Kxc1 {[%emt 0:00:03]} f6 {[%emt 0:01:26]} 25. Rh8+ {[%emt 0:00:15]} Kf7 {[%emt 0:00:05]} 26. Rxe8 {[%emt 0:00:18]} Qxe8 {[%emt 0:00:19]} 27. Rh8 {[%emt 0:00:02] Weighted Error Value: White=0.46/Black=0.74} 1-0

[Event "16th Serbian Championship 2022"]
[Site "Bajina Basta"]
[Date "2022.12.14"]
[Round "9.2"]
[White "Ivanisevic, Ivan"]
[Black "Bogosavljevic, Boban"]
[Result "0-1"]
[ECO "D78"]
[WhiteElo "2533"]
[BlackElo "2521"]
[Annotator "TA"]
[PlyCount "114"]
[EventDate "2022.12.06"]
[EventType "tourn"]
[EventCountry "SRB"]
[SourceTitle "playchess.com"]
[Source "ChessBase"]
[SourceQuality "1"]
[TimeControl "40/5400+30:1800+30"]

{[%evp 13,114,0,9,-23,-11,-18,-4,-4,0,-3,-8,9,24,8,38,38,41,41,39,39,41,40,41,33,18,4,4,4,1,0,26,0,0,-68,-66,-61,-20,-28,-31,-22,-13,-81,-80,-89,-68,-88,-55,-66,-57,-108,-89,-198,-195,-174,-91,-127,-88,-174,-80,-178,-174,-223,-185,-175,-150,-139,-16,-183,-151,-156,-180,-152,-152,-207,-206,-266,-266,-237,-250,-455,-420,-600,-575,-612,-651,-650,-622,-609,-609,-675,-656,-851,-808,-1066,-1020,-29967,-29967,-29967,-29967,-4116,-2117,-29946,-12483]} 1. Nf3 {[%emt 0:00:03]} d5 {[%emt 0:01:21]} 2. g3 {[%emt 0:00:08]} g6 {[%emt 0:00:31]} 3. Bg2 {[%emt 0:01:34]} Bg7 {[%emt 0:00:08]} 4. d4 {[%emt 0:00:45]} c6 {[%emt 0:00:08]} 5. c4 {[%emt 0:03:52]} Nf6 {[%emt 0:00:07]} 6. Na3 {[%emt 0:03:01]} O-O {[%emt 0:01:09]} 7. O-O {[%emt 0:00:06]} Bf5 {[%emt 0:07:14]} 8. Bf4 {[%emt 0:00:12] D78: Fianchetto Grünfeld: 6 0-0 c6.} Qb6 {[%emt 0:01:18]} 9. Qc1 {[%emt 0:00:25]} Nbd7 {[%emt 0:01:07]} 10. Rd1 {[%emt 0:01:27] The position is equal.} Be4 {[%emt 0:08:22]} 11. c5 {[%emt 0:17:14] [#]} Qa6 $146 {[%emt 0:15:07]} ({Predecessor:} 11... Qa5 12. Nb1 Bxf3 13. exf3 Nh5 14. Bd2 Qc7 15. g4 Nhf6 16. Bf4 e5 17. Bg3 Ne8 {1-0 (46) Nikolic,P (2574)-Chittka,J (2319) Germany 2019}) 12. Bf1 {[%emt 0:02:24]} b5 {[%emt 0:19:26]} 13. Nh4 {[%emt 0:06:06]} Nh5 {[%emt 0:14:53]} (13... b4 {simplifies} 14. Nc2 Bxc2 15. Qxc2 Qb7) 14. Bh6 {[%emt 0:03:12]} b4 {[%emt 0:09:53]} 15. Bxg7 {[%emt 0:05:16]} (15. Nb1 {seems wilder.} Bxb1 16. Bxg7 Nxg7 17. e4) 15... Nxg7 {[%emt 0:00:10]} 16. Nc2 {[%emt 0:00:29]} Qc4 {[%emt 0:00:35]} 17. Rd2 {[%emt 0:14:56] Threatens to win with e3.} Bxc2 {[%emt 0:00:14]} 18. e3 {[%emt 0:01:02]} (18. e4 $5 Bd3 $8 19. Bxd3 Qxc1+ 20. Rxc1 $14) 18... Bd3 {[%emt 0:00:07]} 19. Rxd3 {[%emt 0:00:04][%cal Od3c3]} Qxc1 {[%emt 0:00:13]} 20. Rxc1 {[%emt 0:00:04]} a5 {[%emt 0:06:33]} 21. a3 {[%emt 0:00:33]} Rfb8 {[%emt 0:00:23]} 22. Ra1 {[%emt 0:01:05]} (22. Bh3 $5 {[%cal Rh3d7]} e6 23. a4 $11) 22... e5 {[%emt 0:01:06]} 23. Rdd1 {[%emt 0:15:19]} (23. f4 $11) 23... bxa3 {[%emt 0:04:49]} (23... exd4 {simplifies} 24. exd4 bxa3 25. bxa3 Ne6) 24. bxa3 {[%emt 0:00:40]} Rb2 {[%emt 0:03:10]} 25. Rab1 {[%emt 0:11:05]} Rab8 {[%emt 0:00:11]} 26. Rxb2 {[%emt 0:00:09]} Rxb2 {[%emt 0:00:05]} 27. Ba6 {[%emt 0:00:09]} (27. e4 $11 {keeps the balance.}) 27... e4 {[%emt 0:03:29]} 28. Ng2 {[%emt 0:03:05]} g5 {[%emt 0:00:12]} 29. Ne1 {[%emt 0:03:47]} Nf6 {[%emt 0:00:14]} 30. h3 {[%emt 0:00:17]} Ne6 {[%emt 0:00:39]} 31. Rc1 {[%emt 0:00:33]} ({White should play} 31. Kf1 $1 $15) 31... Nc7 $36 {[%emt 0:03:06][%mdl 2048] White is under strong pressure. Black has more active pieces.} 32. Bc8 {[%emt 0:03:34]} (32. Bf1 $17 {only move.}) 32... Rb8 $1 $19 {[%emt 0:00:00]} 33. Bf5 {[%emt 0:00:20] [#]} Rb3 {[%emt 0:00:00]} ({Better is} 33... Nce8 $1 $19 34. g4 Ng7) 34. a4 {[%emt 0:02:19]} Na6 {[%emt 0:00:00]} 35. g4 {[%emt 0:01:08]} (35. Nc2 $17) 35... h6 {[%emt 0:00:16]} (35... Nb4 $19 {and Black stays clearly on top.} 36. h4 gxh4) 36. h4 {[%emt 0:00:44]} (36. Nc2 $17 {was worth a try.}) 36... Nb4 {[%emt 0:00:19]} (36... gxh4 37. Ng2 $17) 37. hxg5 {[%emt 0:00:04]} (37. Kh2 {might work better.}) 37... hxg5 {[%emt 0:00:05]} 38. Kg2 {[%emt 0:01:06]} Kg7 {[%emt 0:00:45]} 39. Kg3 {[%emt 0:00:41]} Ra3 {[%emt 0:01:39]} (39... Na2 $17 40. Ra1 Nc3) 40. Rb1 {[%emt 0:00:46] Loses the game.} (40. Nc2 $1 $11 Rc3 41. Nxb4 Rxc1 42. Nxc6) 40... Rxa4 {[%emt 0:00:27]} 41. f4 {[%emt 0:30:24] [#]} gxf4+ {[%emt 0:12:32]} 42. Kxf4 {[%emt 0:00:00]} Ra2 {[%emt 0:01:50] ...Re2 is the strong threat.} 43. Ke5 {[%emt 0:00:00]} (43. Kg3 $17) 43... Rf2 {[%emt 0:07:09]} 44. Kd6 {[%emt 0:00:00]} Kh6 {[%emt 0:03:35]} (44... Rf1 45. Ra1 $17) 45. Ra1 {[%emt 0:00:00]} Re2 {[%emt 0:00:20] And now ...Kg5 would win.} 46. Kc7 $2 {[%emt 0:00:00]} (46. Bc8) 46... Kg5 {[%emt 0:00:36]} (46... Rxe3 $2 {perishes.} 47. Kb6 $19) 47. Kb6 {[%emt 0:00:00]} (47. Bc8 $142 Nxg4 48. Bd7) 47... Nxg4 {[%emt 0:00:54] Pair of Knights!} ({And not} 47... Rxe3 48. Kxa5 Nd3 49. Nxd3 Rxd3 50. Kb6 $17) 48. Bd7 {[%emt 0:00:00]} Nxe3 {[%emt 0:03:01]} ({Weaker is} 48... Rxe3 49. Bxc6 Rc3 50. Bb5 $17) 49. Bxc6 {[%emt 0:00:00]} f5 {[%emt 0:00:58][%cal Bf7f5,Bf5f4][%mdl 32] Strongly threatening ...Nxc6.} 50. Bb5 {[%emt 0:00:00]} Rb2 {[%emt 0:01:31]} 51. Kxa5 {[%emt 0:00:00]} f4 {[%emt 0:00:59]} 52. Ka4 {[%emt 0:00:00]} Na2 {[%emt 0:01:26] Hoping for ...Nc3+.} 53. Ba6 {[%emt 0:00:00]} Nc3+ {[%emt 0:00:21]} 54. Ka3 {[%emt 0:00:15]} Rb8 {[%emt 0:00:24]} 55. Rc1 {[%emt 0:00:10]} Ra8 {[%emt 0:00:56]} 56. Rxc3 {[%emt 0:00:06]} Rxa6+ {[%emt 0:00:03]} 57. Kb4 {[%emt 0:00:07] [#]} f3 $1 {[%emt 0:00:51] Weighted Error Value: White=0.67/Black=0.11 (very precise)} 0-1

[Event "16th Serbian Championship 2022"]
[Site "Bajina Basta"]
[Date "2022.12.14"]
[Round "9.3"]
[White "Indjic, Aleksandar"]
[Black "Perunovic, Milos"]
[Result "1-0"]
[ECO "D11"]
[WhiteElo "2631"]
[BlackElo "2541"]
[Annotator "TA"]
[PlyCount "71"]
[EventDate "2022.12.06"]
[EventType "tourn"]
[EventCountry "SRB"]
[SourceTitle "playchess.com"]
[Source "ChessBase"]
[SourceQuality "1"]
[TimeControl "40/5400+30:1800+30"]

{[%evp 11,71,0,13,0,0,0,0,0,0,-20,10,12,24,9,14,5,20,0,0,0,0,2,25,17,47,37,56,55,31,58,36,46,175,0,82,82,130,139,134,117,136,97,119,113,147,130,134,112,167,166,254,249,506,498,447,398,638,604,932,888,29991,980]} 1. d4 {[%emt 0:03:57]} d5 {[%emt 0:00:19]} 2. c4 {[%emt 0:00:30]} c6 {[%emt 0:00:17]} 3. Nf3 {[%emt 0:00:10]} Nf6 {[%emt 0:00:17]} 4. Qc2 {[%emt 0:00:07]} g6 {[%emt 0:08:29]} 5. Bf4 {[%emt 0:01:12]} dxc4 {[%emt 0:00:38]} 6. Qxc4 {[%emt 0:00:13]} Bg7 {[%emt 0:02:16]} 7. Nbd2 {[%emt 0:00:07] D11: Slav Defence: 3 Nf3 sidelines and 3...Nf6 4 e3 Bg4.} Bf5 {[%emt 0:16:04] Against e4 is the legacy move (7...0-0).} 8. e3 {[%emt 0:13:00]} O-O {[%emt 0:03:45]} 9. Be2 {[%emt 0:01:00] The position is equal.} Nbd7 {[%emt 0:04:39]} 10. O-O {[%emt 0:06:08]} (10. Qb3 $5 {[%cal Rb3b7]}) 10... Rc8 {[%emt 0:11:13]} 11. Qb3 {[%emt 0:05:57] [#]} c5 $146 {[%emt 0:16:47]} ({Predecessor:} 11... Nb6 12. Rac1 Ne4 13. Nxe4 Bxe4 14. Rfd1 Nd5 15. Bg5 h6 16. Bh4 g5 17. Bg3 Qb6 {½-½ (82) Gausel,E (2522)-Hole,O (2336) Sandnes 2005}) 12. Qxb7 {[%emt 0:09:36]} cxd4 {[%emt 0:00:39]} 13. exd4 {[%emt 0:00:07][%cal Of1c1]} Qb6 {[%emt 0:01:08]} 14. Ba6 {[%emt 0:02:51] Hoping for Qxb6.} (14. Qxb6 {simplifies} Nxb6 15. Rac1 Nfd5 16. Bg3) 14... Rc2 {[%emt 0:02:54]} 15. b3 {[%emt 0:03:20]} Nd5 {[%emt 0:01:19][%mdl 64]} 16. Bg3 {[%emt 0:15:35]} Nb4 {[%emt 0:03:08]} (16... Qxb7 {simplifies} 17. Bxb7 Nc3 18. Kh1 Ne2) 17. Nc4 $1 {[%emt 0:00:15]} Qxa6 {[%emt 0:05:10]} (17... Qxb7 {simplifies} 18. Bxb7 Rxa2 19. Rxa2 Nxa2 20. Re1 Bf6) 18. Qxb4 {[%emt 0:00:21]} Rxa2 {[%emt 0:00:30]} 19. Rxa2 {[%emt 0:00:46]} Qxa2 {[%emt 0:00:07]} 20. Ne3 {[%emt 0:00:34]} Bd3 {[%emt 0:01:51]} 21. Re1 {[%emt 0:00:36][%cal Bf1e1,Be1a1,Ba1a7,Ba7a5,Ba5c5][%mdl 32]} e6 {[%emt 0:05:51] Prevents Nd5.} (21... Nf6 $14) 22. Qc3 $2 {[%emt 0:13:49]} (22. Qb7 $1 $18 {[%cal Rb7d7]}) 22... Qa6 {[%emt 0:02:31]} (22... Bb5 $11 {remains equal.}) 23. Ra1 $16 {[%emt 0:00:34]} Qb5 {[%emt 0:01:56]} (23... Rc8 $142 24. Nc4 Bxc4 25. Rxa6 Bxa6) 24. Rxa7 {[%emt 0:00:23]} Nf6 {[%emt 0:01:39]} 25. Ne5 $1 $36 {[%emt 0:01:32][%mdl 2048] White has strong initiative.} Be4 {[%emt 0:00:19]} 26. f3 {[%emt 0:01:58]} Qb6 {[%emt 0:03:20]} 27. Ra5 {[%emt 0:01:56] aiming for N3c4.} Nd5 {[%emt 0:00:38] [#]} 28. Nxd5 {[%emt 0:00:12]} Bxd5 {[%emt 0:00:04] A strong pair of Bishops.} 29. b4 {[%emt 0:00:35]} Rb8 {[%emt 0:01:23] [#]} (29... Qd8 $16 {is a better defense.}) 30. Rc5 $1 $18 {[%emt 0:00:08] Threatens to win with Nd7.} Qa6 {[%emt 0:01:12]} (30... h5 $142) 31. h4 {[%emt 0:00:17][%cal Ob4b5] Strongly threatening b5!} Bf8 $2 {[%emt 0:00:35] Inhibits b5.} (31... Rf8 {might work better.} 32. Nd7 Rd8) 32. Nd7 {[%emt 0:00:18]} Ra8 {[%emt 0:01:35]} (32... Bxc5 $2 33. dxc5 (33. Bxb8 Be7 $14) 33... Ra8 34. Nf6+ Kh8 35. Nxd5+) 33. Nf6+ {[%emt 0:01:13]} Kh8 $2 {[%emt 0:01:52] [#]} (33... Kg7) 34. Be5 $1 {[%emt 0:00:07]} Qa1+ {[%emt 0:00:27]} (34... Bg7 35. b5) 35. Kh2 {[%emt 0:00:08] Intending Rc8 and mate. Active counter play!} Bxc5 {[%emt 0:00:40]} 36. Nxd5+ {[%emt 0:00:16] Weighted Error Value: White=0.13 (very precise) /Black=0.54} (36. Ng4+ $142 Kg8 37. Nh6+ Kf8 38. Qxc5+ Ke8 39. Ng8 Qg1+ 40. Kxg1 Ra1+ 41. Kh2 Rh1+ 42. Kxh1 Kd8 43. Qe7+ Kc8 44. Qc7#) 1-0